[Event "*** SCC Grand Prix: Titled Tuesday Blitz"]
[Site "Chess.com"]
[Date "2020.07.07"]
[Round "9"]
[White "cassoulet"]
[Black "Grandelicious"]
[Result "1-0"]
[WhiteElo "2659"]
[BlackElo "2771"]
[TimeControl "180+1"]
[EndTime "11:46:56 PDT"]
[Termination "cassoulet won on time"]

1. e4 {[%clk 0:03:00.9]} 1... c5 {[%clk 0:02:57.8]} 2. Nf3 {[%clk 0:03:00.5]}
2... d6 {[%clk 0:02:57.8]} 3. d4 {[%clk 0:03:00.6]} 3... cxd4 {[%clk 0:02:57.9]}
4. Nxd4 {[%clk 0:03:01.5]} 4... Nf6 {[%clk 0:02:58.4]} 5. Nc3 {[%clk 0:03:02.1]}
5... Nc6 {[%clk 0:02:58.9]} 6. Bc4 {[%clk 0:03:00.6]} 6... Qb6 {[%clk
0:02:57.7]} 7. Nde2 {[%clk 0:02:56.7]} 7... e6 {[%clk 0:02:51.9]} 8. O-O {[%clk
0:02:55.9]} 8... Be7 {[%clk 0:02:49.8]} 9. Bb3 {[%clk 0:02:56.2]} 9... O-O
{[%clk 0:02:47.4]} 10. Be3 {[%clk 0:02:56.1]} 10... Qc7 {[%clk 0:02:47.5]} 11.
Ng3 {[%clk 0:02:56.4]} 11... a6 {[%clk 0:02:44.8]} 12. f4 {[%clk 0:02:55.4]}
12... Na5 {[%clk 0:02:31.3]} 13. Qd4 {[%clk 0:02:47.4]} 13... b5 {[%clk
0:02:06.2]} 14. Rae1 {[%clk 0:02:32.3]} 14... Bb7 {[%clk 0:01:56.5]} 15. h3
{[%clk 0:02:28.6]} 15... Rac8 {[%clk 0:01:37.1]} 16. Kh2 {[%clk 0:02:27.8]}
16... Nc4 {[%clk 0:01:36.4]} 17. Bc1 {[%clk 0:02:27.4]} 17... Rfd8 {[%clk
0:01:22.8]} 18. Qf2 {[%clk 0:02:19.9]} 18... d5 {[%clk 0:01:16.2]} 19. e5 {[%clk
0:02:18.3]} 19... Bc5 {[%clk 0:01:07.9]} 20. Qe2 {[%clk 0:02:10.9]} 20... Nd7
{[%clk 0:00:52.1]} 21. Bxc4 {[%clk 0:02:09.4]} 21... bxc4 {[%clk 0:00:50.5]} 22.
f5 {[%clk 0:02:09.8]} 22... Re8 {[%clk 0:00:40.4]} 23. fxe6 {[%clk 0:01:49.3]}
23... Rxe6 {[%clk 0:00:41.3]} 24. Bf4 {[%clk 0:01:49.4]} 24... Rce8 {[%clk
0:00:36.4]} 25. Qg4 {[%clk 0:01:47.2]} 25... Rg6 {[%clk 0:00:33.9]} 26. e6
{[%clk 0:01:37.8]} 26... fxe6 {[%clk 0:00:13.1]} 27. Bxc7 {[%clk 0:01:32.5]}
27... Rxg4 {[%clk 0:00:12.1]} 28. hxg4 {[%clk 0:01:32.6]} 28... Nf6 {[%clk
0:00:13]} 29. Kh3 {[%clk 0:01:28.8]} 29... Bb4 {[%clk 0:00:11]} 30. Be5 {[%clk
0:01:28.7]} 30... Nd7 {[%clk 0:00:10]} 31. a3 {[%clk 0:01:26.2]} 31... Ba5
{[%clk 0:00:09.6]} 32. Nh5 {[%clk 0:01:25]} 32... Re7 {[%clk 0:00:08.3]} 33. Bd6
{[%clk 0:01:17.1]} 33... Re8 {[%clk 0:00:07.4]} 34. Nf4 {[%clk 0:01:16]} 34...
d4 {[%clk 0:00:06.7]} 35. Ne4 {[%clk 0:01:10.6]} 35... Bxe1 {[%clk 0:00:06.6]}
36. Rxe1 {[%clk 0:01:11.1]} 36... e5 {[%clk 0:00:07]} 37. Nh5 {[%clk 0:01:08]}
37... Re6 {[%clk 0:00:06.8]} 38. Bb4 {[%clk 0:01:05.1]} 38... h6 {[%clk
0:00:03.7]} 39. Nc5 {[%clk 0:01:01.7]} 39... Nxc5 {[%clk 0:00:01.8]} 40. Bxc5
{[%clk 0:01:02.6]} 40... d3 {[%clk 0:00:02.7]} 41. cxd3 {[%clk 0:01:00.4]} 41...
cxd3 {[%clk 0:00:03.6]} 42. Bb4 {[%clk 0:00:58.5]} 42... e4 {[%clk 0:00:03.6]}
43. Bd2 {[%clk 0:00:57.3]} 43... Rb6 {[%clk 0:00:02.7]} 44. Bc3 {[%clk
0:00:57.1]} 44... Rb5 {[%clk 0:00:02]} 45. Nf4 {[%clk 0:00:57]} 45... a5 {[%clk
0:00:01.4]} 46. Kg3 {[%clk 0:00:56.7]} 46... a4 {[%clk 0:00:01.8]} 47. Kf2
{[%clk 0:00:56.6]} 47... Rg5 {[%clk 0:00:02.2]} 48. g3 {[%clk 0:00:49.2]} 48...
Rxg4 {[%clk 0:00:02.2]} 49. Ne6 {[%clk 0:00:49.4]} 49... Rg6 {[%clk 0:00:01.9]}
50. Nc5 {[%clk 0:00:49]} 50... Bd5 {[%clk 0:00:01.5]} 51. Nxe4 {[%clk
0:00:49.2]} 51... Re6 {[%clk 0:00:02.4]} 52. Nc5 {[%clk 0:00:47.8]} 52... Rc6
{[%clk 0:00:03]} 53. Nxd3 {[%clk 0:00:47.7]} 53... Bb3 {[%clk 0:00:03.9]} 54.
Re7 {[%clk 0:00:46.9]} 54... Rg6 {[%clk 0:00:03.2]} 55. Nf4 {[%clk 0:00:46.4]}
55... Rg4 {[%clk 0:00:03.1]} 56. Rc7 {[%clk 0:00:45.3]} 56... g5 {[%clk
0:00:01.7]} 57. Nh5 {[%clk 0:00:44.9]} 1-0

[Event "*** SCC Grand Prix: Titled Tuesday Blitz"]
[Site "Chess.com"]
[Date "2020.07.07"]
[Round "9"]
[White "margarita_2703"]
[Black "ehrenfeld"]
[Result "1/2-1/2"]
[WhiteElo "2396"]
[BlackElo "2517"]
[TimeControl "180+1"]
[EndTime "11:46:56 PDT"]
[Termination "Game drawn by repetition"]

1. Nf3 {[%clk 0:03:00.9]} 1... f5 {[%clk 0:02:59.2]} 2. c4 {[%clk 0:02:59.1]}
2... Nf6 {[%clk 0:02:58.3]} 3. Nc3 {[%clk 0:02:59.2]} 3... g6 {[%clk 0:02:57.2]}
4. d4 {[%clk 0:02:59.2]} 4... Bg7 {[%clk 0:02:56.2]} 5. g3 {[%clk 0:02:57.7]}
5... O-O {[%clk 0:02:55.3]} 6. Bg2 {[%clk 0:02:57.7]} 6... d6 {[%clk 0:02:55.2]}
7. O-O {[%clk 0:02:57.2]} 7... c6 {[%clk 0:02:54.4]} 8. d5 {[%clk 0:02:54.6]}
8... e5 {[%clk 0:02:53.7]} 9. dxe6 {[%clk 0:02:52.1]} 9... Bxe6 {[%clk
0:02:53.1]} 10. Bf4 {[%clk 0:02:52]} 10... Bxc4 {[%clk 0:02:45]} 11. Qxd6 {[%clk
0:02:37.9]} 11... Qxd6 {[%clk 0:02:42.1]} 12. Bxd6 {[%clk 0:02:37.4]} 12... Re8
{[%clk 0:02:41.8]} 13. Rfe1 {[%clk 0:02:28.5]} 13... Nbd7 {[%clk 0:02:40.5]} 14.
b3 {[%clk 0:02:26.4]} 14... Bf7 {[%clk 0:02:38.5]} 15. Rac1 {[%clk 0:02:24.6]}
15... h6 {[%clk 0:02:17.7]} 16. b4 {[%clk 0:02:22.3]} 16... Rad8 {[%clk
0:01:56.8]} 17. b5 {[%clk 0:02:14.7]} 17... c5 {[%clk 0:01:51.1]} 18. a4 {[%clk
0:02:10.2]} 18... Ne4 {[%clk 0:01:37.4]} 19. Nxe4 {[%clk 0:02:06.2]} 19... fxe4
{[%clk 0:01:37.4]} 20. Nd2 {[%clk 0:01:46.2]} 20... e3 {[%clk 0:00:54.7]} 21.
Nf3 {[%clk 0:01:27.3]} 21... exf2+ {[%clk 0:00:53.1]} 22. Kxf2 {[%clk 0:01:27]}
22... b6 {[%clk 0:00:49.4]} 23. e4 {[%clk 0:01:23.6]} 23... Nf6 {[%clk
0:00:45.9]} 24. e5 {[%clk 0:01:17.1]} 24... Ng4+ {[%clk 0:00:44.5]} 25. Kg1
{[%clk 0:01:16.8]} 25... Bd5 {[%clk 0:00:43.9]} 26. Rcd1 {[%clk 0:00:58.4]}
26... Bxf3 {[%clk 0:00:43]} 27. Bxf3 {[%clk 0:00:58]} 27... Nxe5 {[%clk
0:00:37.1]} 28. Bxe5 {[%clk 0:00:57.6]} 28... Rxd1 {[%clk 0:00:36.7]} 29. Rxd1
{[%clk 0:00:57.5]} 29... Bxe5 {[%clk 0:00:35.8]} 30. Rd7 {[%clk 0:00:56.7]}
30... Bd4+ {[%clk 0:00:25.7]} 31. Kf1 {[%clk 0:00:56.1]} 31... Re3 {[%clk
0:00:18.4]} 32. Bd5+ {[%clk 0:00:55.8]} 32... Kf8 {[%clk 0:00:18.2]} 33. Rxa7
{[%clk 0:00:54.8]} 33... Ra3 {[%clk 0:00:15.4]} 34. Ra6 {[%clk 0:00:50.9]} 34...
Ra1+ {[%clk 0:00:10.4]} 35. Kg2 {[%clk 0:00:49.6]} 35... Ke7 {[%clk 0:00:08]}
36. Rxb6 {[%clk 0:00:48.2]} 36... Rxa4 {[%clk 0:00:07.2]} 37. Rxg6 {[%clk
0:00:45.7]} 37... h5 {[%clk 0:00:05.2]} 38. b6 {[%clk 0:00:41.7]} 38... Rb4
{[%clk 0:00:04.7]} 39. b7 {[%clk 0:00:41.7]} 39... c4 {[%clk 0:00:04.9]} 40.
Bxc4 {[%clk 0:00:23.8]} 40... Rxb7 {[%clk 0:00:04.3]} 41. Rh6 {[%clk 0:00:19.9]}
41... Rc7 {[%clk 0:00:04]} 42. Be2 {[%clk 0:00:18.7]} 42... Rc2 {[%clk
0:00:03.6]} 43. Kf1 {[%clk 0:00:18]} 43... Rc1+ {[%clk 0:00:03.3]} 44. Kg2
{[%clk 0:00:18.2]} 44... Rc2 {[%clk 0:00:03.5]} 45. Kf1 {[%clk 0:00:18.5]} 45...
Rc1+ {[%clk 0:00:03.4]} 46. Kg2 {[%clk 0:00:18.5]} 46... Rc2 {[%clk 0:00:03.4]}
1/2-1/2

[Event "*** SCC Grand Prix: Titled Tuesday Blitz"]
[Site "Chess.com"]
[Date "2020.07.07"]
[Round "9"]
[White "AccioChess"]
[Black "awesomevishesh"]
[Result "1-0"]
[WhiteElo "2494"]
[BlackElo "2371"]
[TimeControl "180+1"]
[EndTime "11:46:56 PDT"]
[Termination "AccioChess won on time"]

1. e4 {[%clk 0:03:00.9]} 1... c5 {[%clk 0:02:55.2]} 2. Nf3 {[%clk 0:02:59.8]}
2... Nc6 {[%clk 0:02:55.2]} 3. Nc3 {[%clk 0:02:59.4]} 3... e5 {[%clk 0:02:53.5]}
4. Bc4 {[%clk 0:02:58.7]} 4... Be7 {[%clk 0:02:53.2]} 5. d3 {[%clk 0:02:57.6]}
5... d6 {[%clk 0:02:53.2]} 6. O-O {[%clk 0:02:57.1]} 6... Nf6 {[%clk 0:02:53.3]}
7. Ng5 {[%clk 0:02:56.5]} 7... O-O {[%clk 0:02:52.6]} 8. f4 {[%clk 0:02:57.1]}
8... Bg4 {[%clk 0:02:48.1]} 9. Qe1 {[%clk 0:02:56.6]} 9... exf4 {[%clk 0:02:43]}
10. Bxf4 {[%clk 0:02:54.4]} 10... Nd4 {[%clk 0:02:43]} 11. Qf2 {[%clk
0:02:53.5]} 11... h6 {[%clk 0:02:39]} 12. Nf3 {[%clk 0:02:51.8]} 12... Nxf3+
{[%clk 0:02:37.4]} 13. gxf3 {[%clk 0:02:51.7]} 13... Bh3 {[%clk 0:02:37.2]} 14.
Rfd1 {[%clk 0:02:30.4]} 14... Nh5 {[%clk 0:02:34.7]} 15. Be3 {[%clk 0:01:29.1]}
15... Bh4 {[%clk 0:02:31.3]} 16. Qd2 {[%clk 0:01:29.1]} 16... Kh7 {[%clk
0:02:05.5]} 17. Kh1 {[%clk 0:01:28.2]} 17... f5 {[%clk 0:02:00.2]} 18. f4 {[%clk
0:01:15.9]} 18... Qd7 {[%clk 0:01:30.1]} 19. a4 {[%clk 0:01:10.7]} 19... fxe4
{[%clk 0:01:16.1]} 20. dxe4 {[%clk 0:01:09]} 20... Qg4 {[%clk 0:01:15.1]} 21.
Rf1 {[%clk 0:01:08.8]} 21... Ng3+ {[%clk 0:00:24.6]} 22. hxg3 {[%clk 0:01:03.5]}
22... Bxg3 {[%clk 0:00:25.2]} 23. Nd5 {[%clk 0:00:45.1]} 23... Qh4 {[%clk
0:00:20.9]} 24. Kg1 {[%clk 0:00:43.6]} 24... Qg4 {[%clk 0:00:16.5]} 25. Qe2
{[%clk 0:00:14.9]} 25... Qh4 {[%clk 0:00:15.3]} 26. Qf3 {[%clk 0:00:14.3]} 26...
Bxf1 {[%clk 0:00:08.7]} 27. Kxf1 {[%clk 0:00:15.2]} 27... g5 {[%clk 0:00:07.4]}
28. f5 {[%clk 0:00:14.5]} 28... g4 {[%clk 0:00:07.7]} 29. Qg2 {[%clk 0:00:14.8]}
29... Be5 {[%clk 0:00:07.6]} 30. Ke2 {[%clk 0:00:15.1]} 30... Qh2 {[%clk
0:00:03]} 31. Qxh2 {[%clk 0:00:13.2]} 31... Bxh2 {[%clk 0:00:03.9]} 32. Rh1
{[%clk 0:00:13.1]} 32... g3 {[%clk 0:00:04.4]} 33. Kf3 {[%clk 0:00:13.5]} 33...
h5 {[%clk 0:00:04.9]} 34. Bf4 {[%clk 0:00:13.7]} 34... h4 {[%clk 0:00:05.5]} 35.
Bxd6 {[%clk 0:00:13.1]} 35... Rf7 {[%clk 0:00:05.1]} 36. Kg2 {[%clk 0:00:12.1]}
36... Rd7 {[%clk 0:00:04.8]} 37. Nf6+ {[%clk 0:00:11.3]} 37... Kg7 {[%clk
0:00:05.4]} 38. Nxd7 {[%clk 0:00:12.2]} 38... Rd8 {[%clk 0:00:04.4]} 39. Be5+
{[%clk 0:00:12.6]} 39... Kh6 {[%clk 0:00:04.1]} 40. Be6 {[%clk 0:00:12.7]} 1-0

[Event "*** SCC Grand Prix: Titled Tuesday Blitz"]
[Site "Chess.com"]
[Date "2020.07.07"]
[Round "9"]
[White "TST2014"]
[Black "PowerThinking2650"]
[Result "0-1"]
[WhiteElo "2466"]
[BlackElo "2326"]
[TimeControl "180+1"]
[EndTime "11:46:56 PDT"]
[Termination "PowerThinking2650 won by checkmate"]

1. d4 {[%clk 0:03:00.9]} 1... Nf6 {[%clk 0:02:59.5]} 2. c4 {[%clk 0:03:00.6]}
2... g6 {[%clk 0:02:59.7]} 3. Nc3 {[%clk 0:02:59.9]} 3... Bg7 {[%clk 0:03:00.1]}
4. e4 {[%clk 0:02:59.7]} 4... d6 {[%clk 0:03:00.4]} 5. Nf3 {[%clk 0:03:00.3]}
5... O-O {[%clk 0:03:00.8]} 6. Be2 {[%clk 0:03:00.8]} 6... e5 {[%clk 0:03:01.3]}
7. O-O {[%clk 0:03:01.4]} 7... Nc6 {[%clk 0:03:01.7]} 8. d5 {[%clk 0:03:01.8]}
8... Ne7 {[%clk 0:03:01.8]} 9. b4 {[%clk 0:03:02.4]} 9... Nh5 {[%clk 0:03:01.1]}
10. g3 {[%clk 0:03:02.3]} 10... a5 {[%clk 0:03:00.3]} 11. Ba3 {[%clk 0:03:00]}
11... f5 {[%clk 0:02:58]} 12. Ng5 {[%clk 0:02:58.5]} 12... Nf6 {[%clk
0:02:56.5]} 13. Bf3 {[%clk 0:02:58.6]} 13... axb4 {[%clk 0:02:52.3]} 14. Bxb4
{[%clk 0:02:58.1]} 14... b6 {[%clk 0:02:46.5]} 15. a4 {[%clk 0:02:51.7]} 15...
fxe4 {[%clk 0:02:43]} 16. Ncxe4 {[%clk 0:02:47.6]} 16... Nxe4 {[%clk 0:02:41.9]}
17. Bxe4 {[%clk 0:02:47.4]} 17... Nf5 {[%clk 0:02:38.9]} 18. Ne6 {[%clk
0:02:36.6]} 18... Bxe6 {[%clk 0:02:32.4]} 19. dxe6 {[%clk 0:02:37.5]} 19... Rb8
{[%clk 0:02:25.5]} 20. Bc3 {[%clk 0:02:23.7]} 20... Nd4 {[%clk 0:02:09.6]} 21.
Bxd4 {[%clk 0:02:23]} 21... exd4 {[%clk 0:02:09.7]} 22. a5 {[%clk 0:02:11.2]}
22... bxa5 {[%clk 0:02:04.6]} 23. Rxa5 {[%clk 0:02:11.2]} 23... Rb2 {[%clk
0:01:45.2]} 24. Ra8 {[%clk 0:01:57.8]} 24... Qf6 {[%clk 0:01:39.6]} 25. Rxf8+
{[%clk 0:01:51.1]} 25... Kxf8 {[%clk 0:01:37.6]} 26. Qg4 {[%clk 0:01:33]} 26...
Ke7 {[%clk 0:01:17.8]} 27. Bd5 {[%clk 0:01:27.1]} 27... d3 {[%clk 0:01:12.6]}
28. Qe4 {[%clk 0:01:14.8]} 28... Qd4 {[%clk 0:01:07.9]} 29. Qf3 {[%clk
0:01:01.6]} 29... Bf6 {[%clk 0:01:07.5]} 30. Rd1 {[%clk 0:01:00.4]} 30... d2
{[%clk 0:01:02.1]} 31. Kf1 {[%clk 0:00:56]} 31... Rc2 {[%clk 0:00:54.8]} 32. Qb3
{[%clk 0:00:46.9]} 32... Rc1 {[%clk 0:00:46.9]} 33. Ke2 {[%clk 0:00:43.8]} 33...
Qe5+ {[%clk 0:00:18.9]} 34. Kxd2 {[%clk 0:00:38.1]} 34... Bg5+ {[%clk
0:00:15.1]} 35. f4 {[%clk 0:00:37.6]} 35... Bxf4+ {[%clk 0:00:14.6]} 36. gxf4
{[%clk 0:00:37.6]} 36... Qxf4+ {[%clk 0:00:14.9]} 37. Ke2 {[%clk 0:00:34.5]}
37... Qxh2+ {[%clk 0:00:13.2]} 38. Kf1 {[%clk 0:00:29.6]} 38... Qf4+ {[%clk
0:00:09.6]} 39. Bf3 {[%clk 0:00:21]} 39... Rxc4 {[%clk 0:00:05.3]} 40. Qd3
{[%clk 0:00:18.5]} 40... Rc5 {[%clk 0:00:03.3]} 41. Kf2 {[%clk 0:00:18]} 41...
Rh5 {[%clk 0:00:02.5]} 42. Rg1 {[%clk 0:00:17.8]} 42... Rh2+ {[%clk 0:00:02.1]}
43. Rg2 {[%clk 0:00:18.2]} 43... Qh4+ {[%clk 0:00:02.3]} 44. Kg1 {[%clk
0:00:17.4]} 44... Rh1# {[%clk 0:00:02.2]} 0-1

[Event "*** SCC Grand Prix: Titled Tuesday Blitz"]
[Site "Chess.com"]
[Date "2020.07.07"]
[Round "9"]
[White "N00bM3ster"]
[Black "Iskusnyh"]
[Result "0-1"]
[WhiteElo "2602"]
[BlackElo "2479"]
[TimeControl "180+1"]
[EndTime "11:46:57 PDT"]
[Termination "Iskusnyh won by resignation"]

1. d4 {[%clk 0:02:58.6]} 1... d5 {[%clk 0:02:59.1]} 2. c4 {[%clk 0:02:56.6]}
2... c6 {[%clk 0:02:58.4]} 3. Nc3 {[%clk 0:02:57]} 3... Nf6 {[%clk 0:02:58.1]}
4. Bg5 {[%clk 0:02:56.2]} 4... Ne4 {[%clk 0:02:53.5]} 5. Nxe4 {[%clk 0:02:38.5]}
5... dxe4 {[%clk 0:02:53]} 6. Qd2 {[%clk 0:02:39.4]} 6... Na6 {[%clk 0:02:50.4]}
7. e3 {[%clk 0:02:38.3]} 7... f6 {[%clk 0:02:49.9]} 8. Bh4 {[%clk 0:02:34.1]}
8... e5 {[%clk 0:02:49.9]} 9. Ne2 {[%clk 0:02:33.1]} 9... exd4 {[%clk
0:02:43.1]} 10. exd4 {[%clk 0:02:31.7]} 10... Be7 {[%clk 0:02:36.7]} 11. Nc3
{[%clk 0:02:30.5]} 11... O-O {[%clk 0:02:34.7]} 12. Be2 {[%clk 0:02:27.9]} 12...
f5 {[%clk 0:02:32.4]} 13. Bxe7 {[%clk 0:02:13.1]} 13... Qxe7 {[%clk 0:02:32.4]}
14. O-O {[%clk 0:02:13.4]} 14... f4 {[%clk 0:02:28.7]} 15. Rfe1 {[%clk
0:02:11.1]} 15... e3 {[%clk 0:02:12.2]} 16. Bf3 {[%clk 0:02:02.2]} 16... exd2
{[%clk 0:01:45.6]} 17. Rxe7 {[%clk 0:02:00.9]} 17... Bf5 {[%clk 0:01:45.5]} 18.
Rd1 {[%clk 0:01:36.9]} 18... Rae8 {[%clk 0:01:38.8]} 19. Rxe8 {[%clk 0:01:35.6]}
19... Rxe8 {[%clk 0:01:38.3]} 20. Be2 {[%clk 0:01:35.6]} 20... f3 {[%clk
0:01:18]} 21. gxf3 {[%clk 0:01:33.5]} 21... Re6 {[%clk 0:01:17.5]} 22. Rxd2
{[%clk 0:01:24.5]} 22... Bh3 {[%clk 0:01:13.4]} 23. Ne4 {[%clk 0:01:20.8]} 23...
Rg6+ {[%clk 0:01:07.8]} 24. Ng3 {[%clk 0:01:19.9]} 24... h5 {[%clk 0:01:07.5]}
25. Bd3 {[%clk 0:01:13.4]} 25... Re6 {[%clk 0:01:06.9]} 26. Bf1 {[%clk
0:01:10.6]} 26... Re1 {[%clk 0:01:03.9]} 27. Re2 {[%clk 0:00:59.7]} 27... Rd1
{[%clk 0:01:00.6]} 28. Re5 {[%clk 0:00:57.3]} 28... h4 {[%clk 0:00:56.5]} 29.
Rh5 {[%clk 0:00:56.4]} 29... Bxf1 {[%clk 0:00:44.9]} 30. Nxf1 {[%clk 0:00:55.9]}
30... Rxd4 {[%clk 0:00:44.1]} 31. Ne3 {[%clk 0:00:55.9]} 31... Nb4 {[%clk
0:00:39.1]} 32. Nf5 {[%clk 0:00:51.8]} 32... Rxc4 {[%clk 0:00:35.2]} 33. Rxh4
{[%clk 0:00:51.4]} 33... Rxh4 {[%clk 0:00:30.3]} 34. Nxh4 {[%clk 0:00:51.2]}
34... Nxa2 {[%clk 0:00:30.8]} 35. Nf5 {[%clk 0:00:50.8]} 35... Nb4 {[%clk
0:00:30.3]} 36. Nd6 {[%clk 0:00:49.5]} 36... b5 {[%clk 0:00:29.8]} 37. Kf1
{[%clk 0:00:49]} 37... Nd3 {[%clk 0:00:26.7]} 38. b3 {[%clk 0:00:45.4]} 38... a5
{[%clk 0:00:26.8]} 39. Ke2 {[%clk 0:00:39]} 39... Nc1+ {[%clk 0:00:26.4]} 40.
Kd2 {[%clk 0:00:39.5]} 40... Nxb3+ {[%clk 0:00:26.4]} 41. Kc3 {[%clk 0:00:40.4]}
41... a4 {[%clk 0:00:25.3]} 42. Nf5 {[%clk 0:00:38.4]} 42... Kf7 {[%clk
0:00:23.2]} 43. f4 {[%clk 0:00:39.1]} 43... Kf6 {[%clk 0:00:23]} 44. Ne3 {[%clk
0:00:38.9]} 44... Nc5 {[%clk 0:00:21.6]} 45. f3 {[%clk 0:00:38.1]} 45... Ne6
{[%clk 0:00:21.2]} 46. f5 {[%clk 0:00:35.4]} 46... Ng5 {[%clk 0:00:21.1]} 47. f4
{[%clk 0:00:34.9]} 47... Ne4+ {[%clk 0:00:21.1]} 48. Kd4 {[%clk 0:00:34.5]}
48... Nd6 {[%clk 0:00:20.5]} 49. Kc5 {[%clk 0:00:33.1]} 49... Nxf5 {[%clk
0:00:20.2]} 50. Ng4+ {[%clk 0:00:33.1]} 50... Ke6 {[%clk 0:00:19.4]} 51. Kxc6
{[%clk 0:00:33.2]} 51... a3 {[%clk 0:00:19.8]} 52. Nf2 {[%clk 0:00:32.4]} 52...
a2 {[%clk 0:00:19.7]} 53. Nd3 {[%clk 0:00:33.3]} 53... a1=Q {[%clk 0:00:19.1]}
54. Nc5+ {[%clk 0:00:34.2]} 54... Ke7 {[%clk 0:00:17.6]} 55. Kxb5 {[%clk
0:00:35]} 55... Qb2+ {[%clk 0:00:17.1]} 56. Kc6 {[%clk 0:00:34]} 0-1

[Event "*** SCC Grand Prix: Titled Tuesday Blitz"]
[Site "Chess.com"]
[Date "2020.07.07"]
[Round "9"]
[White "BeanScreen"]
[Black "UKR_Master"]
[Result "1-0"]
[WhiteElo "2581"]
[BlackElo "2334"]
[TimeControl "180+1"]
[EndTime "11:46:57 PDT"]
[Termination "BeanScreen won by checkmate"]

1. e4 {[%clk 0:03:00.7]} 1... c5 {[%clk 0:02:59.8]} 2. Nf3 {[%clk 0:03:01]} 2...
d6 {[%clk 0:02:59.6]} 3. d4 {[%clk 0:03:01.6]} 3... cxd4 {[%clk 0:03:00.5]} 4.
Nxd4 {[%clk 0:03:02.5]} 4... e5 {[%clk 0:03:01.4]} 5. Nb3 {[%clk 0:03:01.4]}
5... Nf6 {[%clk 0:03:01.2]} 6. Nc3 {[%clk 0:03:01.7]} 6... Be6 {[%clk
0:03:00.4]} 7. Be3 {[%clk 0:03:01]} 7... Be7 {[%clk 0:02:59.9]} 8. f3 {[%clk
0:03:00.8]} 8... Nc6 {[%clk 0:02:59]} 9. Qd2 {[%clk 0:03:01]} 9... d5 {[%clk
0:02:48.2]} 10. exd5 {[%clk 0:03:01.2]} 10... Nxd5 {[%clk 0:02:49.1]} 11. Nxd5
{[%clk 0:03:01.8]} 11... Qxd5 {[%clk 0:02:49]} 12. Qxd5 {[%clk 0:03:01.8]} 12...
Bxd5 {[%clk 0:02:49.3]} 13. O-O-O {[%clk 0:03:02.7]} 13... Be6 {[%clk
0:02:48.1]} 14. Nc5 {[%clk 0:03:02.6]} 14... Bxc5 {[%clk 0:02:35.1]} 15. Bxc5
{[%clk 0:03:02.4]} 15... f6 {[%clk 0:02:31.1]} 16. Bb5 {[%clk 0:02:58.8]} 16...
Kf7 {[%clk 0:02:30.9]} 17. Rd6 {[%clk 0:02:48.9]} 17... Rac8 {[%clk 0:01:32.4]}
18. Rhd1 {[%clk 0:02:13.5]} 18... Ne7 {[%clk 0:01:10.3]} 19. Ba3 {[%clk
0:01:57.5]} 19... Rc7 {[%clk 0:00:56.6]} 20. b3 {[%clk 0:01:52.4]} 20... Rhc8
{[%clk 0:00:54.6]} 21. c4 {[%clk 0:01:52]} 21... Nf5 {[%clk 0:00:50.3]} 22. Rd8
{[%clk 0:01:15.2]} 22... Nd4 {[%clk 0:00:40.5]} 23. Be8+ {[%clk 0:00:47.7]}
23... Kg8 {[%clk 0:00:32.4]} 24. Rxc8 {[%clk 0:00:47]} 24... Rxc8 {[%clk
0:00:32.2]} 25. Bh5 {[%clk 0:00:46.8]} 25... b5 {[%clk 0:00:20.1]} 26. c5 {[%clk
0:00:46.8]} 26... a5 {[%clk 0:00:17.7]} 27. b4 {[%clk 0:00:37]} 27... axb4
{[%clk 0:00:17.6]} 28. Bxb4 {[%clk 0:00:37.9]} 28... Bxa2 {[%clk 0:00:18]} 29.
Kb2 {[%clk 0:00:35.8]} 29... Bd5 {[%clk 0:00:15.7]} 30. Bg4 {[%clk 0:00:35.5]}
30... f5 {[%clk 0:00:14.9]} 31. Bxf5 {[%clk 0:00:35.9]} 31... Rf8 {[%clk
0:00:06.2]} 32. Bh3 {[%clk 0:00:34.7]} 32... Bc4 {[%clk 0:00:04.5]} 33. Bc3
{[%clk 0:00:32.1]} 33... Rd8 {[%clk 0:00:03.8]} 34. Re1 {[%clk 0:00:30.6]} 34...
Nc6 {[%clk 0:00:04.1]} 35. Bxe5 {[%clk 0:00:27.6]} 35... Rd2+ {[%clk 0:00:04.3]}
36. Kc1 {[%clk 0:00:24.5]} 36... Ra2 {[%clk 0:00:01.8]} 37. Bb2 {[%clk
0:00:19.6]} 37... b4 {[%clk 0:00:01.3]} 38. Re4 {[%clk 0:00:19.4]} 38... Bb5
{[%clk 0:00:01.2]} 39. Rf4 {[%clk 0:00:18.9]} 39... g6 {[%clk 0:00:01.2]} 40.
Be6# {[%clk 0:00:19]} 1-0